fUSD/lending_fUSD_20250304
["ID","MTS","AMOUNT","RATE_DAILY","PERIOD"]
[355390170,1741099837747,-2194.14554396,0.00012042,2]
[355390171,1741099837756,-500.0,0.00012055,2]
[355390172,1741099837766,-550.0,0.00012055,2]
[355390173,1741099837776,-600.0,0.000121,4]
[355390174,1741099837786,-776.86,0.00012149,2]
[355390175,1741099837796,-151.81,0.00012164,2]
[355390176,1741099837805,-150.0,0.00012193,2]
[355390177,1741099837815,-1968.82334912,0.00012197,2]
[355390178,1741099837824,-900.0,0.000122,4]
[355390179,1741099837834,-221.98,0.00012201,2]
[355390180,1741099837844,-25872.9026,0.00012213,2]
[355390181,1741099837858,-151.81,0.00012292,2]
[355390182,1741099837867,-3238.59904615,0.00012295,2]
[355390183,1741099837878,-1200.0,0.000123,4]
[355390184,1741099837888,-508.23480951,0.00012312,2]
[355390185,1741099837898,-500.0,0.00012312,2]
[355390186,1741099837908,-30679.47821023,0.00012313,2]
[355390187,1741099837919,-161.576007,0.00012335,2]
[355390188,1741099837929,-3076.98,0.00012365,2]
[355390189,1741099837938,-4119.58866114,0.00012368,2]
[355390190,1741099837947,-205.223,0.00012382,2]
[355390191,1741099837957,-2500.0,0.00012387,2]
[355390192,1741099837966,-2590.75526486,0.00012387,2]
[355390193,1741099837990,-995.60961589,0.00012387,2]
[355390194,1741099837999,-165.4055113,0.00012387,2]
[355390195,1741099838009,-1909.16086281,0.00012387,2]
[355390196,1741099838021,-6697.651077,0.00012387,2]
[355390197,1741099838033,-507.35536019,0.00012387,2]
[355390198,1741099838043,-22669.3185,0.00012387,2]
[355390199,1741099838052,-3586.3648807,0.00012398,2]
[355390200,1741099838062,-1600.0,0.000124,4]
[355390201,1741099838076,-3586.3648807,0.00012409,2]
[355390202,1741099838085,-151.81,0.0001242,2]
[355390203,1741099838094,-1809.51953297,0.0001242,2]
[355390206,1741099838239,-1776.84534773,0.0001242,2]
[355390208,1741099838251,-3586.3648807,0.00012431,2]
[355390210,1741099838260,-165.40551128,0.00012437,2]
[355390212,1741099838270,-3586.3648807,0.00012443,2]
[355390214,1741099838279,-167.82363172,0.00012448,2]
[355390216,1741099838288,-316.93839823,0.00012448,2]
[355390218,1741099838298,-3586.3648807,0.00012454,2]
[355390220,1741099838307,-3756.44107,0.0001246,2]
[355390221,1741099838317,-161.35,0.00012461,2]
[355390222,1741099838326,-3586.3648807,0.00012465,2]
[355390224,1741099838336,-500.0,0.00012466,2]
[355390227,1741099838345,-3586.3648807,0.00012476,2]
[355390230,1741099838356,-11556.7665,0.00012487,2]
[355390234,1741099838365,-507.3244,0.00012487,2]
[355390237,1741099838374,-7246.3476,0.00012487,2]
[355390240,1741099838384,-1253.6204,0.00012487,2]
[355390243,1741099838393,-5809.0492,0.00012487,2]
[355390246,1741099838403,-484.1275,0.00012487,2]
[355390249,1741099838412,-10608.0699,0.00012487,2]
[355390252,1741099838422,-231.5438,0.00012487,2]
[355390254,1741099838431,-30891.86802208,0.00012487,2]
[355390256,1741099838443,-50168.87738126,0.00012487,2]
[355390259,1741099838454,-1271.27896997,0.00012487,2]
[355390263,1741099838483,-1267.75081,0.00012487,2]
[355390265,1741099838495,-558643.54297558,0.00012487,2]
[355390267,1741099838504,-162.5427789,0.00012487,2]
[355390269,1741099838514,-540.814673,0.00012487,2]
[355390271,1741099838524,-151.0,0.00012487,2]
[355390273,1741099838533,-540.814673,0.00012487,2]
[355390275,1741099838543,-151.0,0.00012487,2]
[355390277,1741099838552,-65803.64923619,0.00012487,2]
[355390279,1741099838561,-151.0,0.00012487,2]
[355390281,1741099838572,-151.0,0.00012487,2]
[355390283,1741099838581,-151.0,0.00012487,2]
[355390285,1741099838591,-3586.3648807,0.00012487,2]
[355390287,1741099838610,-373.277185,0.00012487,2]
[355390289,1741099838619,-373.277185,0.00012487,2]
[355390291,1741099838629,-155.388641,0.00012487,2]
[355390293,1741099838638,-155.388641,0.00012487,2]
[355390295,1741099838647,-151.0,0.00012487,2]
[355390297,1741099838657,-151.0,0.00012487,2]
[355390299,1741099838666,-1221.494354,0.00012487,2]
[355390301,1741099838675,-1221.494354,0.00012487,2]
[355390303,1741099838685,-6572.48930232,0.00012487,2]
[355390305,1741099838694,-151.286771,0.00012487,2]
[355390307,1741099838704,-165.40551128,0.00012487,2]
[355390309,1741099838713,-229.951739,0.00012487,2]
[355390310,1741099838723,-229.951739,0.00012487,2]
[355390312,1741099838732,-153.893987,0.00012487,2]
[355390315,1741099838741,-151.0,0.00012487,2]
[355390316,1741099838750,-204.65096548,0.0001249,2]
[355390318,1741099838760,-300.0,0.000125,4]
[355390321,1741099838771,-2882495.08590054,0.000125,2]
[355390323,1741099838781,-151.0,0.000125,2]
[355390325,1741099838791,-9948.0,0.00012548,2]
[355390327,1741099838802,-151.0,0.00012548,2]
[355390329,1741099838812,-599.31011246,0.0001257,2]
[355390331,1741099838822,-150.0,0.00012575,2]
[355390333,1741099838832,-2324.28548466,0.00012585,2]
[355390335,1741099838842,-151.0,0.00012586,2]
[355390337,1741099838855,-151.0,0.00012586,2]
[355390339,1741099838866,-188.5585,0.00012586,2]
[355390341,1741099838876,-181.828755,0.00012586,2]
[355390343,1741099838885,-151.0,0.00012586,2]
[355390345,1741099838896,-181.828755,0.00012586,2]
[355390347,1741099838905,-151.0,0.00012586,2]
[355390349,1741099838915,-151.0,0.00012586,2]
[355390351,1741099838924,-1161.93358,0.00012586,2]
[355390353,1741099838933,-1161.93358,0.00012586,2]
[355390354,1741099838941,-1466.0,0.00012587,2]
[355390356,1741099838948,-488802.18324783,0.00012587,2]
[355390417,1741099839615,-150.0,0.00011835,2]
[355390419,1741099839625,-157.87645431,0.00012587,2]
[355390429,1741099839707,-315.6869027,0.00012587,2]
[355390456,1741099839971,-2431.03197655,0.00012587,2]
[355390459,1741099839983,-670.89146793,0.00012587,2]
[355390461,1741099839995,-27618.60149146,0.00012587,2]
[355390463,1741099840006,-1053.8806196,0.00012587,2]
[355390465,1741099840018,-283.02,0.00012587,2]
[355390467,1741099840031,-286.82,0.00012587,2]
[355390469,1741099840043,-2140.1624806,0.00012587,2]
[355390472,1741099840055,-42300.778826,0.00012587,2]
[355390476,1741099840096,-82448.99999999,0.00012587,2]
[355390479,1741099840112,-1452.82876446,0.00012587,2]
[355390481,1741099840124,-322.85806883,0.00012587,2]
[355390892,1741099844385,-178.967645,0.00012487,2]
[355390895,1741099844395,-293.358012,0.00012487,2]
[355390898,1741099844405,-178.967645,0.00012586,2]
[355390901,1741099844415,-1000.03859785,0.00012587,2]
[355390909,1741099844483,-80050.59249845,0.00012587,2]
[355390912,1741099844495,-4000.0,0.00012587,2]
[355391047,1741099845706,-449.33669991,0.00012587,2]
[355391050,1741099845719,-1351.45806015,0.00012587,2]
[355391051,1741099845731,-3152.76949256,0.00012587,2]
[355391052,1741099845742,-28089.36979,0.00012587,2]
[355391053,1741099845777,-16792.04745742,0.00012587,2]
[355391128,1741099846555,-54113.4621178,0.00012587,2]
[355391130,1741099846566,-513.23526,0.00012587,2]
[355391132,1741099846578,-30647.43257212,0.00012587,2]
[355391135,1741099846589,-83955.0,0.00012587,2]
[355391139,1741099846622,-254771.43199137,0.00012587,2]
[355391858,1741099980439,4531.530461,0.0002,120]
[355391859,1741100354705,699.17,9.622e-05,2]
[355391860,1741100947983,-150.0,0.00011502,7]
[355391865,1741101031898,-550.0,0.00011,2]
[355391866,1741101031909,-500.0,0.00011,2]
[355391867,1741101031919,-358.83669698,0.00011,2]
[355391868,1741101032090,-117.57937041,0.00011,2]
[355391869,1741101032102,-150.0,0.00011243,2]
[355391870,1741101032113,-221.98,0.00011338,2]
[355391871,1741101032124,-150.0,0.00011483,2]
[355391872,1741101032134,-1000.0,0.00011486,2]
[355391873,1741101032145,-163.33,0.0001153,2]
[355391874,1741101032156,-223.71,0.00011652,2]
[355391875,1741101032167,-168.98,0.00011717,2]
[355391876,1741101032178,-3212.95,0.0001178,2]
[355391877,1741101032189,-300.0,0.0001178,2]
[355391878,1741101032200,-878.72,0.00011781,2]
[355391879,1741101032210,-151.68783099,0.00011781,2]
[355391880,1741101032356,-1217.31216901,0.00011781,2]
[355391881,1741101032367,-150.99,0.00011781,2]
[355391882,1741101032379,-344.56,0.00011781,2]
[355391883,1741101032390,-344.56,0.00011781,2]
[355391884,1741101032401,-344.62,0.00011781,2]
[355391885,1741101032412,-250.0,0.00011834,2]
[355391886,1741101032423,-150.0,0.00011834,2]
[355391888,1741101032434,-144.18303337,0.00011835,2]
[355391890,1741101032446,-426.81696663,0.00011835,2]
[355391892,1741101032456,-640.0,0.00011835,2]
[355391894,1741101032468,-786.0,0.00011835,2]
[355391896,1741101032478,-657.78509864,0.00011835,2]
[355392019,1741101038545,-249.21490136,0.00011835,2]
[355392020,1741101038556,-1427.0,0.00011835,2]
[355392021,1741101038565,-304.32,0.00011835,2]
[355392022,1741101038575,-541.0,0.00011835,2]
[355392023,1741101038584,-4041.0,0.00011835,2]
[355392025,1741101038593,-150.0,0.00011835,2]
[355392027,1741101038603,-2757.25839091,0.00011835,2]
[355392030,1741101038619,-1171.74160909,0.00011835,2]
[355392032,1741101038628,-1113.0,0.00011835,2]
[355392034,1741101038638,-699.17,0.00011886,2]
[355392036,1741101038647,-123.90239556,0.00011988,2]
[355392038,1741101038660,-653.90760444,0.00011988,2]
[355392040,1741101038669,-777.81,0.00011988,2]
[355392042,1741101038679,-1000.0,0.00012,2]
[355392044,1741101038689,-1000.0,0.00012,2]
[355392046,1741101038698,-1000.0,0.00012,2]
[355392048,1741101038707,-1555.34,0.00012,2]
[355392050,1741101038717,-1000.0,0.00012,2]
[355392052,1741101038726,-1000.0,0.00012,2]
[355392054,1741101038735,-150.0,0.000121,2]
[355392056,1741101038746,-4021.277,0.00012287,2]
[355392058,1741101038755,-419.6996943,0.00012335,2]
[355392060,1741101038765,-2685.0,0.00012387,2]
[355392062,1741101038778,-500.0,0.00012411,2]
[355392064,1741101038787,-3130.36756,0.0001246,2]
[355392066,1741101038797,-2461.584,0.00012486,2]
[355392068,1741101038807,-164.179,0.00012486,2]
[355392070,1741101038816,-2500.0,0.00012487,2]
[355392072,1741101038826,-178.967645,0.00012487,2]
[355392074,1741101038835,-151.0,0.00012487,2]
[355392076,1741101038845,-151.0,0.00012487,2]
[355392078,1741101038854,-151.0,0.00012487,2]
[355392080,1741101038864,-1968.04069383,0.00012487,2]
[355392082,1741101038873,-316.93839823,0.00012487,2]
[355392083,1741101038882,-4381.6595349,0.00012487,2]
[355392086,1741101038891,-240.92268614,0.00012487,2]
[355392088,1741101038901,-509.2214,0.00012487,2]
[355392089,1741101038910,-200.0,0.000125,2]
[355392091,1741101038920,-200.0,0.000125,2]
[355392093,1741101038929,-200.0,0.000125,2]
[355392095,1741101038939,-192.0,0.000125,2]
[355392097,1741101038948,-192.0,0.000125,3]
[355392099,1741101038958,-192.0,0.000125,2]
[355392102,1741101038968,-195.65,0.000125,2]
[355392104,1741101038977,-250.43253387,0.000125,2]
[355392106,1741101038987,-300.52045201,0.00012521,2]
[355392108,1741101038996,-152.64592437,0.00012573,2]
[355392110,1741101039006,-2010.68,0.0001258,2]
[355392112,1741101039016,-28529.22286905,0.00012582,2]
[355392116,1741101039051,-92024.15584396,0.00012582,2]
[355392118,1741101039063,-821.079985,0.00012582,2]
[355392234,1741101040190,-490.28268385,0.00012582,2]
[355392237,1741101040202,-828.86,0.00012582,2]
[355392239,1741101040214,-722.1,0.00012582,2]
[355392249,1741101040305,-693.71573391,0.00012582,2]
[355392252,1741101040317,-759.12314338,0.00012582,2]
[355392254,1741101040328,-420.26999999,0.00012582,2]
[355392256,1741101040340,-363.731227,0.00012582,2]
[355392258,1741101040352,-278.64,0.00012582,2]
[355392260,1741101040364,-524.885,0.00012582,2]
[355392263,1741101040376,-832.1736816,0.00012582,2]
[355392676,1741101044606,-689.12,0.000125,2]
[355392678,1741101044616,-417.48310953,0.00012582,2]
[355392687,1741101044709,-2359.53,0.00012582,2]
[355392689,1741101044721,-1579.62,0.00012582,2]
[355392692,1741101044734,-3092.82686774,0.00012582,2]
[355392694,1741101044747,-551.14367185,0.00012582,2]
[355392899,1741101046778,-16729.1831519,0.00012582,2]
[355392915,1741101046926,-25104.87482389,0.00012582,2]
[355392917,1741101046937,-21120.92231271,0.00012582,2]
[355392919,1741101046950,-635.73893999,0.00012582,2]
[355392931,1741101047057,-10025.88217962,0.00012582,2]
[355392933,1741101047069,-2136.2374359,0.00012582,2]
[355392936,1741101047085,-8220.3,0.00012582,2]
[355393781,1741101446434,685.1,9.804e-05,2]
[355393782,1741101461985,-500.0,0.00011763,2]
[355393783,1741101618503,-278.44,0.00011763,2]
[355393784,1741101839920,264.0,0.0002,120]
[355393785,1741101905422,168.56,9.134e-05,2]
[355393792,1741102045076,257.99440498,0.00010243,2]
[355393810,1741102231950,-700.00120322,0.00011,2]
[355393811,1741102231962,-117.82879678,0.00011,2]
[355393815,1741102232040,-32.17120322,0.00011,2]
[355393816,1741102232050,-550.0,0.00011,2]
[355393817,1741102232060,-150.0,0.0001124,2]
[355393818,1741102232069,-150.0,0.00011363,2]
[355393819,1741102232079,-150.0,0.00011418,7]
[355393820,1741102232089,-1000.0,0.00011418,2]
[355393821,1741102232099,-330.22,0.00011418,2]
[355393822,1741102232109,-657.33237968,0.00011507,2]
[355393823,1741102232121,-506.95762032,0.00011507,2]
[355393824,1741102232131,-158.44,0.00011698,2]
[355393825,1741102232141,-158.44,0.00011768,2]
[355393826,1741102232152,-300.0,0.00011837,2]
[355393827,1741102232161,-4600.42,0.00011838,2]
[355393828,1741102232171,-158.44,0.00011838,2]
[355393829,1741102232181,-268.84,0.000119,2]
[355393830,1741102232190,-2578.18,0.000119,2]
[355393831,1741102232200,-158.44,0.00011908,2]
[355393832,1741102232211,-441.19,0.00011918,2]
[355393833,1741102232221,-882.38,0.00011918,2]
[355393834,1741102232231,-441.19,0.00011918,2]
[355393835,1741102232240,-441.19,0.00011918,2]
[355393836,1741102232249,-441.19,0.00011918,2]
[355393837,1741102232259,-441.19,0.00011918,2]
[355393838,1741102232268,-199.0,0.00011973,2]
[355393839,1741102232281,-158.44,0.00011978,2]
[355393840,1741102232291,-150.0,0.00011993,2]
[355393841,1741102232301,-786.0,0.00011994,2]
[355393842,1741102232311,-719.487,0.00011994,2]
[355393843,1741102232320,-468.146,0.00011994,2]
[355393844,1741102232330,-541.0,0.00011994,2]
[355393845,1741102232340,-4041.0,0.00011994,2]
[355393846,1741102232350,-1277.0,0.00011994,2]
[355393847,1741102232359,-2031.0,0.00011994,2]
[355393848,1741102232369,-1583.0,0.00011994,2]
[355393849,1741102232378,-3929.0,0.00011994,2]
[355393850,1741102232387,-150.0,0.00011994,2]
[355393851,1741102232397,-150.0,0.00011994,2]
[355393852,1741102232406,-1011.0,0.00011994,2]
[355393853,1741102232416,-441.29,0.00012,2]
[355393854,1741102232430,-440.31,0.00012,2]
[355393855,1741102232439,-992.29,0.00012041,2]
[355393856,1741102232449,-158.44,0.00012049,2]
[355393857,1741102232459,-685.1,0.00012067,2]
[355393858,1741102232469,-441.19,0.000121,2]
[355393859,1741102232479,-344.62,0.000121,2]
[355393860,1741102232488,-150.0,0.000121,2]
[355393861,1741102232498,-158.44,0.00012119,2]
[355393862,1741102232507,-150.0,0.00012178,2]
[355393863,1741102232516,-344.56,0.00012178,2]
[355393864,1741102232526,-344.56,0.00012178,2]
[355393865,1741102232537,-158.44,0.00012189,2]
[355393866,1741102232547,-150.0,0.000122,2]
[355393867,1741102232556,-441.19,0.000122,2]
[355393868,1741102232566,-441.19,0.000122,2]
[355393869,1741102232575,-500.0,0.00012247,2]
[355393870,1741102232585,-158.44,0.00012259,2]
[355393871,1741102232595,-158.44,0.00012329,2]
[355393872,1741102232605,-419.6996943,0.00012335,2]
[355393873,1741102232614,-184.4511,0.00012387,2]
[355393874,1741102232624,-2685.0,0.00012387,2]
[355393875,1741102232634,-158.44,0.00012399,2]
[355393877,1741102232643,-4021.277,0.000124,2]
[355393879,1741102232652,-509.2214,0.000124,2]
[355393881,1741102232662,-316.93839823,0.000124,2]
[355393883,1741102232671,-3659.63806835,0.000124,2]
[355393885,1741102232681,-3659.63806831,0.0001241,2]
[355393887,1741102232690,-3659.63806831,0.00012419,2]
[355393889,1741102232699,-158.44,0.0001247,2]
[355393891,1741102232709,-152.64592437,0.00012473,2]
[355393893,1741102232719,-534.49611357,0.00012486,2]
[355393895,1741102232728,-534.49611349,0.00012486,2]
[355393897,1741102232738,-534.49611349,0.00012486,2]
[355393901,1741102232747,-534.49611349,0.00012486,2]
[355393904,1741102232756,-534.49611349,0.00012486,2]
[355393907,1741102232766,-534.49611349,0.00012487,2]
[355393910,1741102232775,-534.49611349,0.00012487,2]
[355393913,1741102232787,-534.49611349,0.00012487,2]
[355393916,1741102232799,-15829.8575,0.00012487,2]
[355393919,1741102232809,-22669.3185,0.00012487,2]
[355393922,1741102232817,-507.3554,0.00012487,2]
[355393925,1741102232827,-35151.1182,0.00012487,2]
[355393928,1741102232836,-2500.0,0.00012487,2]
[355393930,1741102232845,-534.49611349,0.00012487,2]
[355393933,1741102232855,-160.64565074,0.00012487,2]
[355393936,1741102232864,-165.651,0.00012487,2]
[355393938,1741102232874,-2129.136,0.00012487,2]
[355393939,1741102232883,-534.49611349,0.00012487,2]
[355393940,1741102232893,-6272.60800187,0.00012487,2]
[355393941,1741102232906,-5000.0,0.00012487,2]
[355393943,1741102232915,-500.0,0.00012498,2]
[355393946,1741102232925,-500.0,0.00012498,2]
[355393948,1741102232935,-217.19824216,0.00012498,2]
[355393949,1741102232946,-204.56818647,0.00012499,3]
[355393950,1741102232955,-234688.45165277,0.00012499,2]
[355393951,1741102232993,-6915.13276324,0.00012499,2]
[355393952,1741102233005,-493.9935,0.00012499,2]
[355393953,1741102233016,-2113.28286315,0.00012499,2]
[355393954,1741102233033,-5196.42540613,0.00012499,2]
[355393955,1741102233067,-7924.0053856,0.00012499,2]
[355393956,1741102233079,-854.02,0.00012499,2]
[355393957,1741102233091,-1565.51600315,0.00012499,2]
[355393958,1741102233108,-774.34181465,0.00012499,2]
[355393959,1741102233119,-101255.88711991,0.00012499,2]
[355393983,1741102237898,-770.76998,0.000124,2]
[355393984,1741102237912,-4229.23002,0.000124,2]
[355393985,1741102237921,-240.92268614,0.000124,2]
[355393986,1741102237931,-1050.84729386,0.00012429,2]
[355393987,1741102237943,-2608.79077445,0.00012429,2]
[355393988,1741102237953,-13948.98479905,0.00012499,2]
[355393989,1741102237964,-33651.8,0.00012499,2]
[355393990,1741102237991,-12000.0,0.00012499,2]
[355393991,1741102238031,-2048.99,0.00012499,2]
[355393992,1741102238099,-4131.42612,0.00012499,2]
[355393993,1741102238174,-494.01,0.00012499,2]
[355393995,1741102238378,-2054.20215,0.00012499,2]
[355394157,1741102240121,-640.0,0.00011994,2]
[355394159,1741102240131,-15862.51038554,0.00012499,2]
[355394164,1741102240173,-212934.80000001,0.00012499,2]
[355394177,1741102240315,-1437.0417429,0.00012499,2]
[355394179,1741102240328,-134235.04193719,0.00012499,2]
[355394181,1741102240341,-3364.40604561,0.00012499,2]
[355394183,1741102240357,-39151.29126136,0.00012499,2]
[355394185,1741102240367,-1873.96384344,0.000125,2]
[355394187,1741102240379,-8245.07798132,0.000125,2]
[355394189,1741102240391,-493.83692031,0.000125,2]
[355394193,1741102240415,-2610.43861816,0.000125,2]
[355394238,1741102240926,-419.71500002,0.000125,2]
[355394241,1741102240937,-1369.14439425,0.000125,2]
[355394617,1741102244695,-3659.63806831,0.00012439,2]
[355394619,1741102244705,-590.40773169,0.000125,2]
[355394746,1741102245860,-500.726,0.000125,2]
[355394750,1741102245872,-5757.95332738,0.000125,2]
[355394754,1741102245884,-1516.89800786,0.000125,2]
[355394756,1741102245897,-509.50571749,0.000125,2]
[355394789,1741102246214,-571.0,0.00012145,2]
[355394791,1741102246224,-3659.63806831,0.00012448,2]
[355394793,1741102246235,-3889.05537659,0.000125,2]
[355394892,1741102247319,-1631.57,0.000125,2]
[355394893,1741102247332,-1328.09878405,0.000125,2]
[355394894,1741102247358,-4520.54224,0.000125,2]
[355394895,1741102247392,-247.99399771,0.000125,2]
[355394896,1741102247405,-1043.53858094,0.000125,2]
[355394897,1741102247418,-133117.47697829,0.000125,2]
[355394898,1741102247429,-550.0,0.00012534,2]
[355394899,1741102247440,-158.44,0.0001254,2]
[355394914,1741102247450,-2742.26723,0.00012582,2]
[355394918,1741102247626,-154.0,0.00012582,3]
[355394920,1741102247636,-1000.0,0.00012586,2]
[355394922,1741102247646,-1000.0,0.00012586,2]
[355394924,1741102247655,-1000.0,0.00012586,2]
[355394926,1741102247665,-1000.0,0.00012586,2]
[355394928,1741102247675,-1000.0,0.00012586,2]
[355394930,1741102247684,-1000.0,0.00012586,2]
[355394932,1741102247693,-1000.0,0.00012586,2]
[355394934,1741102247703,-1000.0,0.00012586,2]
[355394935,1741102247712,-999.0,0.00012586,2]
[355394938,1741102247721,-999.0,0.00012586,2]
[355394939,1741102247731,-999.0,0.00012586,2]
[355394942,1741102247741,-999.0,0.00012586,2]
[355394944,1741102247750,-999.0,0.00012586,2]
[355394946,1741102247760,-999.0,0.00012586,2]
[355394948,1741102247769,-999.0,0.00012586,2]
[355394950,1741102247780,-999.0,0.00012586,2]
[355394952,1741102247789,-78.29310218,0.00012586,2]
[355394954,1741102247805,-920.70689782,0.00012586,2]
[355394956,1741102247814,-999.0,0.00012586,2]
[355394958,1741102247824,-999.0,0.00012586,2]
[355394960,1741102247834,-999.0,0.00012586,2]
[355394961,1741102247844,-999.0,0.00012586,2]
[355394962,1741102247854,-999.0,0.00012586,2]
[355394963,1741102247863,-999.0,0.00012586,2]
[355394964,1741102247873,-999.0,0.00012586,2]
[355394966,1741102247883,-999.0,0.00012586,2]
[355394968,1741102247891,-999.0,0.00012586,2]
[355394970,1741102247904,-999.0,0.00012586,2]
[355394972,1741102247914,-999.0,0.00012586,2]
[355394974,1741102247923,-154.65194612,0.00012586,2]
[355394976,1741102247933,-1077.82461427,0.00012586,3]
[355394978,1741102247943,-2195.0,0.00012587,2]
[355394980,1741102247954,-10000.0,0.00012587,2]
[355394982,1741102247964,-122609.59854178,0.00012587,2]
[355394984,1741102247976,-24725.38619999,0.00012587,2]
[355394987,1741102247994,-6833.07806403,0.00012587,2]
[355394989,1741102248005,-9441.26624788,0.00012587,2]
[355394991,1741102248018,-326.208,0.00012587,2]
[355395361,1741103043069,682.15,9.611e-05,2]
[355395362,1741103169821,1000.0,0.00020011,120]
[355395367,1741103432345,-1498.37856869,0.00011506,2]
[355395370,1741103432375,-481.36,0.00011506,2]
[355395372,1741103432387,-20.26143131,0.00011506,2]
[355395374,1741103432397,-150.0,0.00011582,2]
[355395376,1741103432407,-150.0,0.00011631,2]
[355395378,1741103432417,-1000.0,0.00011658,2]
[355395380,1741103432427,-300.0,0.00011665,2]
[355395381,1741103432438,-624.63882043,0.00011666,2]
[355395384,1741103432450,-4701.0273,0.00011666,2]
[355395386,1741103432465,-4342.33387957,0.00011666,2]
[355395388,1741103432475,-185.39,0.00011666,2]
[355395389,1741103432484,-346.24,0.000117,2]
[355395391,1741103432495,-682.15,0.00011875,2]
[355395393,1741103432505,-150.0,0.00012152,2]
[355395394,1741103432514,-150.99,0.00012152,2]
[355395395,1741103432524,-6767.65,0.00012152,2]
[355395396,1741103432534,-17187.7,0.00012153,2]
[355395397,1741103432544,-23110.44,0.00012153,2]
[355395398,1741103432553,-1135.55,0.00012153,2]
[355395399,1741103432563,-1639.16,0.00012153,2]
[355395400,1741103432572,-637.0,0.00012154,2]
[355395401,1741103432582,-378.625,0.00012154,2]
[355395402,1741103432591,-786.0,0.00012154,2]
[355395403,1741103432602,-1427.0,0.00012154,2]
[355395404,1741103432611,-908.0,0.00012154,2]
[355395405,1741103432621,-1269.0,0.00012154,2]
[355395406,1741103432630,-541.0,0.00012154,2]
[355395407,1741103432639,-4041.0,0.00012154,2]
[355395408,1741103432649,-150.457,0.00012154,2]
[355395410,1741103432658,-3929.0,0.00012154,2]
[355395412,1741103432667,-150.0,0.00012154,2]
[355395414,1741103432677,-185.39,0.00012191,2]
[355395416,1741103432687,-314.7747707,0.00012335,2]
[355395418,1741103432696,-880.62,0.000124,2]
[355395420,1741103432707,-307.0,0.000124,2]
[355395422,1741103432720,-230.92,0.000124,2]
[355395424,1741103432730,-150.0,0.000124,2]
[355395426,1741103432740,-150.0,0.000124,2]
[355395428,1741103432749,-2832.93269,0.0001246,2]
[355395430,1741103432759,-777.81,0.00012477,2]
[355395431,1741103432769,-5076.2407,0.0001248,2]
[355395433,1741103432779,-1685.1553,0.0001248,2]
[355395434,1741103432789,-555.17128761,0.0001248,2]
[355395435,1741103432798,-1470.23267453,0.0001248,2]
[355395436,1741103432808,-5000.0,0.00012487,2]
[355395437,1741103432819,-340.84691169,0.00012487,2]
[355395438,1741103432829,-2493.792,0.00012487,2]
[355395439,1741103432839,-165.356,0.00012487,2]
[355395440,1741103432849,-777.81,0.000125,2]
[355395441,1741103432859,-152.85494304,0.00012573,2]
[355395442,1741103432869,-500.0,0.00012573,2]
[355395443,1741103432879,-97242.5249608,0.0001258,2]
[355395444,1741103432889,-108795.88188206,0.0001258,2]
[355395445,1741103432901,-768.8155052,0.0001258,2]
[355395446,1741103432932,-353.6592317,0.0001258,2]
[355395447,1741103433018,-1470.23267448,0.00012481,2]
[355395448,1741103433028,-140081.64338104,0.0001258,2]
[355395450,1741103433039,-1000.0,0.00012586,2]
[355395452,1741103433049,-1000.0,0.00012586,2]
[355395454,1741103433059,-1000.0,0.00012586,2]
[355395456,1741103433070,-500.0,0.00012586,2]
[355395458,1741103433080,-352.03876952,0.00012586,2]
[355395460,1741103433090,-1938.0,0.00012587,2]
[355395462,1741103433100,-45621.80566458,0.00012587,2]
[355395465,1741103433114,-149713.47967446,0.00012587,2]
[355395496,1741103438194,-864.04318,0.00012154,2]